[Event "Satka Autumn 2020"]
[Site "Satka"]
[Date "2020.10.27"]
[Round "7.13"]
[White "Nasybullina, Dayana"]
[Black "Leolko, Ludmila"]
[Result "1/2-1/2"]
[ECO "B71"]
[WhiteElo "1802"]
[BlackElo "1899"]
[Annotator "NA RC"]
[PlyCount "101"]
[EventDate "2020.10.21"]
[EventType "swiss"]
[EventCountry "RUS"]
[SourceTitle "playchess.com"]
[Source "ChessBase"]
[SourceQuality "1"]
[TimeControl "5400+30"]

{[%evp 9,70,28,36,19,14,-10,1,0,0,-29,-4,-23,0,-15,6,6,0,0,-3,0,16,10,13,1,39,6,0,0,0,0,0,-5,0,-24,-1,0,0,0,0,0,0,-23,-24,-49,-10,-53,-17,-18,0,10,55,60,79,64,66,75,68,72,94,70,75,91,111]} 1. e4 {[%emt 0:00:00]} c5 {[%emt 0:00:00]} 2. Nf3 {[%emt 0:00:11]} d6 {[%emt 0:00:00]} 3. d4 {[%emt 0:00:12]} cxd4 {[%emt 0:00:00]} 4. Nxd4 {[%emt 0:00:05]} Nf6 {[%emt 0:00:00]} 5. Nc3 {[%emt 0:00:14]} g6 {[%emt 0:00:01]} 6. f4 {[%emt 0:00:39]} Nc6 {[%emt 0:00:04]} 7. Nxc6 {[%emt 0:00:28]} bxc6 {[%emt 0:00:12]} 8. e5 {[%emt 0:00:25]} Nd7 {[%emt 0:00:27]} 9. exd6 {[%emt 0:00:44]} exd6 {[%emt 0:00:04]} 10. Qd4 {[%emt 0:01:05]} Qf6 {[%emt 0:00:11] B71: Sicilian Dragon: 6 f4.} 11. Be3 {[%emt 0:00:45]} Bg7 {[%emt 0:00:08]} 12. O-O-O {[%emt 0:04:31]} d5 {[%emt 0:00:54]} 13. Qxf6 {[%emt 0:04:48]} Nxf6 {[%emt 0:00:12]} 14. Bc5 {[%emt 0:01:31] [#]} Bf5 $146 {[%emt 0:04:04]} ({Predecessor:} 14... Be6 15. Ba6 Kd7 16. Rhe1 Kc7 17. Be2 Nd7 18. Bd4 Bxd4 19. Rxd4 Rhe8 {½-½ (56) Coret Frasquet,J (2300)-Eslon,J (2360) Valencia 1990}) 15. Bd3 {[%emt 0:02:58]} Bxd3 {[%emt 0:13:41]} 16. Rxd3 {[%emt 0:00:36]} Kd7 {[%emt 0:00:09]} 17. Re1 {[%emt 0:01:47]} Rhe8 {[%emt 0:00:27]} 18. Rde3 {[%emt 0:02:49]} Rxe3 {[%emt 0:02:11]} 19. Rxe3 {[%emt 0:01:27]} Bf8 {[%emt 0:00:17]} 20. Bxf8 {[%emt 0:12:10]} Rxf8 {[%emt 0:00:04]} 21. Na4 {[%emt 0:04:34]} Ne4 {[%emt 0:01:31]} 22. Ra3 {[%emt 0:01:51]} Rb8 {[%emt 0:08:09]} 23. Nc3 {[%emt 0:04:18]} Rb7 {[%emt 0:00:40]} 24. Nxe4 {[%emt 0:00:56]} dxe4 {[%emt 0:00:10]} 25. Rh3 {[%emt 0:12:06]} Ke6 {[%emt 0:03:25]} 26. g4 {[%emt 0:09:21]} f6 {[%emt 0:02:55]} 27. Rc3 {[%emt 0:04:12]} Kd5 {[%emt 0:00:52]} 28. b3 {[%emt 0:00:45]} h6 {[%emt 0:22:00]} 29. Kd2 {[%emt 0:03:13]} c5 {[%emt 0:02:18]} 30. Rh3 {[%emt 0:03:14]} Rh7 {[%emt 0:01:23]} 31. Ke3 {[%emt 0:04:54]} c4 {[%emt 0:19:17]} 32. bxc4+ {[%emt 0:01:01]} Kxc4 {[%emt 0:00:05]} 33. Kxe4 {[%emt 0:00:15]} a5 {[%emt 0:01:04]} 34. Ra3 {[%emt 0:03:00]} Re7+ {[%emt 0:00:34]} 35. Kf3 {[%emt 0:00:10]} Ra7 $16 {[%emt 0:00:33]} 36. Re3 {[%emt 0:02:59]} a4 {[%emt 0:05:35]} 37. a3 {[%emt 0:02:31]} Kd5 {[%emt 0:10:26]} 38. f5 {[%emt 0:04:36]} gxf5 {[%emt 0:01:56]} 39. gxf5 {[%emt 0:00:04]} Rc7 {[%emt 0:00:06]} 40. Kg4 {[%emt 0:06:13]} Rxc2 {[%emt 0:01:47]} 41. h4 {[%emt 0:01:01]} Rf2 {[%emt 0:01:14]} 42. Re6 {[%emt 0:00:49]} h5+ {[%emt 0:00:14]} 43. Kg3 {[%emt 0:00:11]} Rxf5 {[%emt 0:00:40]} 44. Ra6 {[%emt 0:00:07]} Ke4 {[%emt 0:01:12]} 45. Re6+ {[%emt 0:01:36]} Kd3 {[%emt 0:00:40]} 46. Ra6 {[%emt 0:00:10]} Ke3 {[%emt 0:00:08]} 47. Re6+ {[%emt 0:00:57]} Kd2 {[%emt 0:00:45]} 48. Ra6 {[%emt 0:00:07]} Ke2 {[%emt 0:00:37]} 49. Re6+ {[%emt 0:00:08]} Kd2 {[%emt 0:00:36]} 50. Ra6 {[%emt 0:00:21]} Ke3 {[%emt 0:00:29]} 51. Re6+ {[%emt 0:00:08]} 1/2-1/2

[Event "Satka Autumn 2020"]
[Site "Satka"]
[Date "2020.10.28"]
[Round "8.12"]
[White "Shnayder, Violetta"]
[Black "Nikulina, Anastasiya"]
[Result "1-0"]
[ECO "A05"]
[WhiteElo "1917"]
[BlackElo "1604"]
[Annotator "NA"]
[PlyCount "111"]
[EventDate "2020.10.21"]
[EventType "swiss"]
[EventCountry "RUS"]
[SourceTitle "playchess.com"]
[Source "ChessBase"]
[SourceQuality "1"]
[TimeControl "5400+30"]

1. Nf3 {[%emt 0:00:00]} Nf6 {[%emt 0:00:00]} 2. g3 {[%emt 0:00:00]} b6 {[%emt 0:00:00]} 3. Bg2 {[%emt 0:00:00]} Bb7 {[%emt 0:00:00]} 4. O-O {[%emt 0:00:09]} g6 {[%emt 0:00:08]} 5. c4 {[%emt 0:00:24]} Bg7 {[%emt 0:00:14]} 6. d4 {[%emt 0:00:06]} O-O {[%emt 0:00:14]} 7. Nc3 {[%emt 0:00:06]} Ne4 {[%emt 0:00:30]} 8. Qc2 {[%emt 0:00:12]} Nxc3 {[%emt 0:00:20]} 9. Qxc3 {[%emt 0:00:05]} c5 {[%emt 0:00:10]} 10. Be3 {[%emt 0:03:48]} Bxf3 {[%emt 0:01:27]} 11. Bxf3 {[%emt 0:01:58]} Nc6 {[%emt 0:00:08]} 12. Bxc6 {[%emt 0:06:13]} dxc6 {[%emt 0:00:09]} 13. Rfd1 {[%emt 0:01:07]} Qd7 {[%emt 0:01:31]} 14. Rd3 {[%emt 0:07:11]} Rfd8 {[%emt 0:09:12]} 15. Rad1 {[%emt 0:00:36]} Qg4 {[%emt 0:04:50]} 16. R1d2 {[%emt 0:23:13]} (16. f3 $11 {keeps the balance.} Qe6 17. Kf2) 16... Rd7 {[%emt 0:11:46]} 17. f3 {[%emt 0:04:52] [#]} Qe6 $1 {[%emt 0:00:47]} 18. Qc2 {[%emt 0:00:32]} (18. Qb3 $142 Bxd4 19. Bxd4 cxd4 20. Rxd4 Rxd4 21. Rxd4) 18... cxd4 {[%emt 0:01:16]} 19. Bf2 {[%emt 0:03:54]} Rad8 {[%emt 0:04:22]} 20. c5 {[%emt 0:00:50]} b5 {[%emt 0:10:12]} 21. b3 {[%emt 0:04:11]} a5 {[%emt 0:06:57]} 22. Kg2 {[%emt 0:01:45]} Rd5 {[%emt 0:05:41]} 23. a3 {[%emt 0:03:51]} Rh5 {[%emt 0:06:00]} 24. h4 {[%emt 0:04:09]} Rhd5 {[%emt 0:03:09]} 25. Rd1 {[%emt 0:00:45]} h5 {[%emt 0:07:31]} 26. Be1 {[%emt 0:03:33]} Ra8 {[%emt 0:06:31]} 27. Bf2 {[%emt 0:00:45]} Qd7 {[%emt 0:02:43]} 28. e4 {[%emt 0:01:57]} dxe3 $1 {[%emt 0:01:15]} 29. Rxd5 {[%emt 0:00:42]} cxd5 {[%emt 0:00:14]} 30. Bxe3 {[%emt 0:00:11] [#]} Qc6 $1 {[%emt 0:00:42]} 31. Qd2 {[%emt 0:01:58]} (31. Bd2 {is a better defense.}) 31... e6 {[%emt 0:00:58]} 32. Kf2 {[%emt 0:04:34] [#]} (32. Bf2 $142) 32... Qc7 $19 {[%emt 0:03:34]} (32... d4 $142 $1 {[%mdl 512]} 33. Bh6 (33. Bxd4 Rd8) 33... Bxh6 34. Qxh6 Qxc5) 33. Qd3 {[%emt 0:01:46]} b4 {[%emt 0:01:01]} 34. a4 {[%emt 0:00:32]} Rc8 {[%emt 0:01:38]} 35. Rc1 {[%emt 0:02:16]} Bc3 {[%emt 0:02:27]} 36. Kg2 {[%emt 0:01:29]} Qc6 {[%emt 0:01:17]} 37. Bd4 {[%emt 0:00:52]} Bxd4 {[%emt 0:01:38]} 38. Qxd4 {[%emt 0:00:02]} Qa6 {[%emt 0:01:46]} 39. Kf2 {[%emt 0:01:26]} Qa7 {[%emt 0:01:48]} 40. Kg2 {[%emt 0:01:24]} Rc6 {[%emt 0:04:04]} 41. g4 {[%emt 0:00:29]} hxg4 {[%emt 0:00:40]} 42. fxg4 {[%emt 0:00:07]} Qe7 {[%emt 0:00:50]} 43. g5 {[%emt 0:01:38]} Rc8 {[%emt 0:01:03]} 44. Kf3 {[%emt 0:01:34]} Rd8 {[%emt 0:00:36]} 45. Qe5 {[%emt 0:01:59]} d4 {[%emt 0:00:33]} 46. c6 {[%emt 0:00:09]} d3 {[%emt 0:00:20]} 47. c7 {[%emt 0:00:46]} Rc8 {[%emt 0:00:09]} 48. Ke3 {[%emt 0:01:46]} Qd7 {[%emt 0:00:22]} 49. Kd2 {[%emt 0:00:37]} Kh7 {[%emt 0:01:09]} 50. h5 {[%emt 0:00:41]} Qe7 {[%emt 0:00:31]} 51. h6 {[%emt 0:01:07]} f6 {[%emt 0:00:06]} 52. gxf6 {[%emt 0:00:21]} Qd7 {[%emt 0:00:25]} 53. Rc5 {[%emt 0:01:54]} Qf7 {[%emt 0:00:30]} 54. Kxd3 {[%emt 0:00:52]} Qd7+ {[%emt 0:00:42]} 55. Ke2 {[%emt 0:00:20]} Kxh6 {[%emt 0:00:46]} 56. Qh2# {[%emt 0:00:24]} 1-0

[Event "Satka Autumn 2020"]
[Site "Satka"]
[Date "2020.10.28"]
[Round "8.13"]
[White "Shamsutdinova, Karina"]
[Black "Nasybullina, Dayana"]
[Result "0-1"]
[ECO "A41"]
[WhiteElo "1762"]
[BlackElo "1802"]
[Annotator "NA"]
[PlyCount "136"]
[EventDate "2020.10.21"]
[EventType "swiss"]
[EventCountry "RUS"]
[SourceTitle "playchess.com"]
[Source "ChessBase"]
[SourceQuality "1"]
[TimeControl "5400+30"]

1. Nf3 {[%emt 0:00:00]} d6 {[%emt 0:02:23]} 2. d4 {[%emt 0:01:08]} Bg4 {[%emt 0:00:15]} 3. g3 {[%emt 0:08:26]} Nf6 {[%emt 0:02:38]} 4. Bg2 {[%emt 0:00:36]} c6 {[%emt 0:03:35]} 5. c4 {[%emt 0:02:54]} Nbd7 {[%emt 0:02:12]} 6. h3 {[%emt 0:07:49]} Bxf3 {[%emt 0:03:43]} 7. exf3 {[%emt 0:01:21]} d5 {[%emt 0:05:23]} 8. cxd5 {[%emt 0:01:23]} Nxd5 {[%emt 0:01:22]} 9. Nc3 {[%emt 0:02:35]} N7f6 {[%emt 0:03:42]} 10. O-O {[%emt 0:01:11]} e6 {[%emt 0:01:12]} 11. f4 {[%emt 0:02:33]} Be7 {[%emt 0:03:03]} 12. g4 {[%emt 0:08:04]} O-O {[%emt 0:08:59]} 13. Qf3 {[%emt 0:09:04]} Qb6 {[%emt 0:03:36]} 14. g5 {[%emt 0:11:39]} Nd7 {[%emt 0:00:44]} (14... Ne8 $1 $15) 15. Nxd5 {[%emt 0:06:04]} exd5 {[%emt 0:00:15]} 16. Be3 {[%emt 0:07:50]} f6 {[%emt 0:06:17]} 17. b3 {[%emt 0:07:03]} (17. h4 $11 {remains equal.}) 17... Qc7 {[%emt 0:04:48]} ({Better is} 17... fxg5 $17 18. Qg4 {[%mdl 64] Double Attack} gxf4 19. Qxd7 fxe3 20. Qe6+ Rf7 21. fxe3 Bf6) 18. Qe2 {[%emt 0:04:16]} Bd6 {[%emt 0:01:55]} 19. Rac1 {[%emt 0:03:34]} Nb6 {[%emt 0:01:10]} 20. Qg4 {[%emt 0:02:10]} Rae8 {[%emt 0:04:22]} 21. h4 {[%emt 0:01:49]} fxg5 {[%emt 0:05:35]} 22. fxg5 {[%emt 0:00:10]} Re7 {[%emt 0:06:33]} ({Better is} 22... Qc8 $17 23. Qxc8 Nxc8) 23. Rce1 {[%emt 0:02:02]} Ref7 {[%emt 0:02:20]} 24. h5 {[%emt 0:01:35]} Bh2+ {[%emt 0:02:11]} 25. Kh1 {[%emt 0:00:05]} Bf4 {[%emt 0:01:01]} 26. Bh3 {[%emt 0:01:16]} Kh8 {[%emt 0:07:24]} 27. Qg2 {[%emt 0:00:22]} Qd6 {[%emt 0:04:36]} 28. Kg1 {[%emt 0:01:49]} Nc8 {[%emt 0:02:52]} 29. g6 {[%emt 0:00:43]} Rf6 {[%emt 0:04:31]} 30. Bxf4 {[%emt 0:01:08]} Qxf4 {[%emt 0:01:12]} 31. gxh7 {[%emt 0:01:54]} Qxd4 {[%emt 0:01:43]} 32. Bxc8 {[%emt 0:00:19]} Rxc8 {[%emt 0:00:06]} 33. Re3 {[%emt 0:01:32]} Rcf8 {[%emt 0:00:51]} 34. Rg3 {[%emt 0:00:15]} Rh6 {[%emt 0:01:17]} 35. Rg5 {[%emt 0:00:38]} Kxh7 {[%emt 0:00:48]} 36. Re1 {[%emt 0:00:17]} Qf6 {[%emt 0:00:31]} 37. Ree5 {[%emt 0:00:42]} Rg8 {[%emt 0:02:11]} 38. Qg3 {[%emt 0:00:53]} g6 {[%emt 0:00:54]} 39. Qd3 {[%emt 0:01:15]} Kh8 {[%emt 0:00:28]} 40. Qg3 {[%emt 0:00:18]} Kh7 {[%emt 0:00:39]} 41. Kf1 {[%emt 0:00:39]} Rg7 {[%emt 0:00:30]} 42. Qd3 {[%emt 0:00:30]} Kh8 {[%emt 0:00:35]} 43. Re8+ {[%emt 0:00:36]} Rg8 {[%emt 0:00:27]} 44. Rxg8+ {[%emt 0:00:35]} Kxg8 {[%emt 0:00:04]} 45. Rg3 {[%emt 0:00:41]} Kg7 {[%emt 0:00:30]} 46. Qe2 {[%emt 0:00:23]} Kh7 {[%emt 0:00:57]} 47. Rf3 {[%emt 0:00:23]} Qa1+ {[%emt 0:00:26]} 48. Kg2 {[%emt 0:00:05]} Rxh5 {[%emt 0:00:20]} 49. Qe7+ {[%emt 0:00:34]} Kh6 {[%emt 0:00:21]} 50. Qf8+ {[%emt 0:00:20]} Qg7 {[%emt 0:00:15]} 51. Qd6 {[%emt 0:01:11]} Rg5+ {[%emt 0:00:29]} 52. Kh3 {[%emt 0:00:43]} Kh7 {[%emt 0:00:51]} 53. Rf4 {[%emt 0:00:32]} Rf5 {[%emt 0:00:53]} 54. Rg4 {[%emt 0:00:31]} Rxf2 {[%emt 0:00:26]} 55. Rh4+ {[%emt 0:00:13]} Kg8 {[%emt 0:00:03]} 56. Qe6+ {[%emt 0:00:32]} Qf7 {[%emt 0:00:26]} 57. Qc8+ $19 {[%emt 0:00:05]} Qf8 {[%emt 0:00:30]} 58. Qe6+ {[%emt 0:00:24]} Kg7 {[%emt 0:00:17]} 59. Qe5+ {[%emt 0:00:22]} Rf6 {[%emt 0:00:52]} 60. Rg4 {[%emt 0:01:27]} Qd6 {[%emt 0:00:30]} 61. Qd4 {[%emt 0:00:30]} c5 {[%emt 0:00:20]} 62. Qe3 {[%emt 0:00:16]} d4 {[%emt 0:00:50]} 63. Qe4 {[%emt 0:00:13]} Qd7 {[%emt 0:00:37]} 64. Kg3 {[%emt 0:00:57]} Re6 {[%emt 0:00:16]} 65. Qc2 {[%emt 0:00:35]} Re3+ {[%emt 0:00:15]} 66. Kh4 {[%emt 0:00:14]} Qe7+ {[%emt 0:00:13]} 67. Rg5 {[%emt 0:00:05]} Re4+ {[%emt 0:00:52]} 68. Kh3 {[%emt 0:00:06]} Qxg5 {[%emt 0:00:12]} 0-1

[Event "Satka Autumn 2020"]
[Site "Satka"]
[Date "2020.10.29"]
[Round "9.13"]
[White "Nikulina, Anastasiya"]
[Black "Vanishvili, Mari"]
[Result "1-0"]
[ECO "C41"]
[WhiteElo "1604"]
[BlackElo "1878"]
[Annotator "NA RC"]
[PlyCount "71"]
[EventDate "2020.10.21"]
[EventType "swiss"]
[EventCountry "RUS"]
[SourceTitle "playchess.com"]
[Source "ChessBase"]
[SourceQuality "1"]
[TimeControl "5400+30"]

{[%evp 8,55,37,32767,32767,32767,34,29,45,30,67,-5,17,32767,25,0,29,18,38,19,45,17,33,0,0,0,127,129,142,32767,32767,105,32767,32767,32767,343,341,353,400,366,399,32767,32767,32767,515,463,498,429,343,454]} 1. e4 {[%emt 0:00:00]} e5 {[%emt 0:12:30]} 2. Nf3 {[%emt 0:00:06]} d6 {[%emt 0:00:11]} 3. d4 {[%emt 0:00:05]} exd4 {[%emt 0:00:04]} 4. Nxd4 {[%emt 0:00:03]} Nf6 {[%emt 0:00:06]} 5. Nc3 {[%emt 0:00:06]} Be7 {[%emt 0:00:12]} 6. Bf4 {[%emt 0:00:11]} O-O {[%emt 0:00:17]} 7. Qd2 {[%emt 0:00:08]} a6 {[%emt 0:01:52]} 8. O-O-O {[%emt 0:00:07]} b5 {[%emt 0:00:19]} 9. Rg1 {[%emt 0:08:30]} (9. f3 $14) 9... Re8 {[%emt 0:06:17]} 10. Nf5 {[%emt 0:05:03]} Bf8 {[%emt 0:09:55] Remove Defender} (10... Bxf5 $5 11. exf5 b4 $11) 11. f3 {[%emt 0:08:09]} Bxf5 {[%emt 0:07:48]} 12. exf5 {[%emt 0:00:07]} Nbd7 {[%emt 0:13:03]} 13. g4 {[%emt 0:03:38]} b4 {[%emt 0:00:43]} 14. Nd5 {[%emt 0:08:12]} c6 {[%emt 0:12:05]} 15. Nxf6+ {[%emt 0:13:48]} Nxf6 {[%emt 0:00:23]} 16. Bxd6 {[%emt 0:00:54]} Qa5 {[%emt 0:03:21] [#]} (16... Qb6 $1 $11 17. Bxf8 Qxg1 18. Bxg7 (18. Bxb4 Nd5 $11) 18... Kxg7 19. Qg5+ Kf8 20. Qxf6 Qe3+ {[%mdl 64] Double Attack} 21. Kb1 Rad8) 17. Bxf8 $1 {[%emt 0:05:07]} Qxa2 {[%emt 0:01:40]} 18. Qxb4 {[%emt 0:02:19]} Rxf8 {[%emt 0:00:15]} 19. Bc4 {[%emt 0:02:10]} c5 {[%emt 0:02:47]} 20. Bxa2 {[%emt 0:00:54]} cxb4 {[%emt 0:00:05]} 21. g5 {[%emt 0:01:46]} Nh5 {[%emt 0:01:04]} 22. g6 {[%emt 0:04:24]} a5 {[%emt 0:04:51]} 23. Rd4 {[%emt 0:09:02]} Nf6 {[%emt 0:02:00]} 24. h4 {[%emt 0:03:51]} Rab8 {[%emt 0:02:20]} 25. Rd6 {[%emt 0:03:21]} Rfc8 $2 {[%emt 0:04:56]} (25... Rfd8 {was worth a try.} 26. Bxf7+ (26. gxf7+ Kf8 $18) 26... Kf8) 26. Bxf7+ {[%emt 0:04:57]} Kf8 {[%emt 0:00:45]} 27. Bb3 {[%emt 0:03:04]} hxg6 {[%emt 0:01:11]} 28. fxg6 $18 {[%emt 0:00:55]} Rc7 {[%emt 0:03:00]} 29. Ra6 {[%emt 0:02:44]} Ke7 {[%emt 0:02:16]} 30. Rxa5 {[%emt 0:01:07]} Rh8 {[%emt 0:00:21]} 31. Re1+ {[%emt 0:01:34]} Kd6 {[%emt 0:01:38]} 32. Re6+ {[%emt 0:02:05]} Kd7 {[%emt 0:00:06]} 33. Rxf6 {[%emt 0:00:37]} Rxc2+ {[%emt 0:00:40]} 34. Kxc2 {[%emt 0:00:18]} Rc8+ {[%emt 0:00:26]} 35. Kd3 {[%emt 0:00:09]} gxf6 {[%emt 0:00:08]} 36. g7 {[%emt 0:00:16]} 1-0